fUSD/lending_fUSD_20250119
["ID","MTS","AMOUNT","RATE_DAILY","PERIOD"]
[349537041,1737283886576,-500.0,0.00020547,2]
[349537042,1737283886586,-165.177096,0.00020547,2]
[349537043,1737283886595,-500.0,0.00020547,2]
[349537044,1737283886604,-500.0,0.00020547,2]
[349537045,1737283886613,-500.0,0.00020547,2]
[349537046,1737283886623,-500.0,0.00020547,2]
[349537047,1737283886632,-500.0,0.00020547,2]
[349537048,1737283886642,-500.0,0.00020547,2]
[349537049,1737283886651,-500.0,0.00020547,2]
[349537050,1737283886660,-500.0,0.00020547,2]
[349537051,1737283886670,-500.0,0.00020547,2]
[349537052,1737283886680,-500.0,0.00020547,2]
[349537053,1737283886689,-500.0,0.00020547,2]
[349537054,1737283886700,-500.0,0.00020547,2]
[349537055,1737283886710,-500.0,0.00020547,2]
[349537056,1737283886720,-500.0,0.00020547,2]
[349537057,1737283886729,-500.0,0.00020547,2]
[349537058,1737283886743,-156.895581,0.00020547,2]
[349537059,1737283886753,-500.0,0.00020547,2]
[349537060,1737283886763,-500.0,0.00020547,2]
[349537061,1737283886772,-500.0,0.00020547,2]
[349537062,1737283886781,-156.895578,0.00020547,2]
[349537063,1737283886791,-500.0,0.00020547,2]
[349537064,1737283886800,-500.0,0.00020547,2]
[349537065,1737283886809,-500.0,0.00020547,2]
[349537066,1737283886819,-215.623532,0.00020547,2]
[349537067,1737283886828,-528.74,0.00020547,2]
[349537068,1737283886837,-215.623542,0.00020547,2]
[349537069,1737283886847,-580.43,0.00020547,2]
[349537070,1737283886856,-605.84,0.00020547,2]
[349537071,1737283886866,-637.03,0.00020547,2]
[349537072,1737283886876,-500.0,0.00020547,2]
[349537073,1737283886886,-500.0,0.00020547,2]
[349537074,1737283886896,-521.4,0.00020547,2]
[349537075,1737283886906,-500.0,0.00020547,2]
[349537076,1737283886915,-500.0,0.00020547,2]
[349537077,1737283886925,-627.47,0.00020547,2]
[349537078,1737283886934,-500.0,0.00020547,2]
[349537079,1737283886944,-261.32243234,0.00020547,2]
[349537080,1737283886955,-500.0,0.00020547,2]
[349537081,1737283886965,-500.0,0.00020547,2]
[349537082,1737283886975,-500.0,0.00020547,2]
[349537083,1737283886986,-500.0,0.00020547,2]
[349537084,1737283886995,-579.9,0.00020547,2]
[349537085,1737283887005,-500.0,0.00020547,2]
[349537086,1737283887014,-500.0,0.00020547,2]
[349537087,1737283887024,-539.08680381,0.00020547,2]
[349537088,1737283887034,-500.0,0.00020547,2]
[349537089,1737283887043,-500.0,0.00020547,2]
[349537090,1737283887053,-500.0,0.00020547,2]
[349537091,1737283887062,-577.68883301,0.00020547,2]
[349537092,1737283887071,-500.0,0.00020547,2]
[349537093,1737283887081,-500.0,0.00020547,2]
[349537094,1737283887090,-500.0,0.00020547,2]
[349537095,1737283887099,-500.0,0.00020547,2]
[349537096,1737283887109,-486.68389218,0.00020547,2]
[349537097,1737283887118,-500.0,0.00020547,2]
[349537098,1737283887127,-500.0,0.00020547,2]
[349537099,1737283887137,-500.0,0.00020547,2]
[349537100,1737283887146,-500.0,0.00020547,2]
[349537101,1737283887155,-289.2158349,0.00020547,2]
[349537102,1737283887164,-500.0,0.00020547,2]
[349537103,1737283887174,-1003.77,0.00020547,2]
[349537104,1737283887183,-500.0,0.00020547,2]
[349537105,1737283887192,-500.0,0.00020547,2]
[349537106,1737283887203,-1030.56,0.00020547,2]
[349537107,1737283887212,-511.98156666,0.00020547,2]
[349537108,1737283887222,-500.0,0.00020547,2]
[349537109,1737283887232,-631.77,0.00020547,2]
[349537110,1737283887241,-2323.77,0.00020547,2]
[349537111,1737283887252,-635.02,0.00020547,2]
[349537112,1737283887262,-500.0,0.00020547,2]
[349537113,1737283887272,-577.63,0.00020547,2]
[349537114,1737283887281,-500.0,0.00020547,2]
[349537115,1737283887291,-500.0,0.00020547,2]
[349537116,1737283887301,-3097.0,0.00020547,2]
[349537117,1737283887313,-492.5079859,0.00020547,2]
[349537118,1737283887322,-1005.63,0.00020547,2]
[349537119,1737283887332,-500.0,0.00020547,2]
[349537120,1737283887342,-500.0,0.00020547,2]
[349537121,1737283887352,-500.0,0.00020547,2]
[349537122,1737283887361,-500.0,0.00020547,2]
[349537123,1737283887371,-500.0,0.00020547,2]
[349537124,1737283887380,-11879.94,0.00020547,2]
[349537125,1737283887390,-1256.94,0.00020547,2]
[349537126,1737283887399,-1216.46,0.00020547,2]
[349537127,1737283887409,-500.0,0.00020547,2]
[349537128,1737283887418,-608.69,0.00020547,2]
[349537129,1737283887428,-500.0,0.00020547,2]
[349537130,1737283887437,-500.0,0.00020547,2]
[349537131,1737283887448,-500.0,0.00020547,2]
[349537132,1737283887457,-500.0,0.00020547,2]
[349537133,1737283887466,-688.32,0.00020547,2]
[349537134,1737283887475,-3397.4,0.00020547,2]
[349537135,1737283887485,-500.0,0.00020547,2]
[349537136,1737283887494,-500.0,0.00020547,2]
[349537137,1737283887503,-464.45387055,0.00020547,2]
[349537138,1737283887512,-500.0,0.00020547,2]
[349537139,1737283887521,-500.0,0.00020547,2]
[349537140,1737283887530,-500.0,0.00020547,2]
[349537141,1737283887539,-230.12159602,0.00020547,2]
[349537142,1737283887549,-5667.54,0.00020547,2]
[349537143,1737283887559,-1735.14,0.00020547,2]
[349537144,1737283887569,-500.0,0.00020547,2]
[349537145,1737283887578,-1499.614895,0.00020547,2]
[349537146,1737283887588,-500.0,0.00020547,2]
[349537147,1737283887598,-942.38,0.00020547,2]
[349537148,1737283887607,-317.23170171,0.00020547,2]
[349537149,1737283887619,-1499.614895,0.00020547,2]
[349537150,1737283887630,-500.0,0.00020547,2]
[349537151,1737283887639,-500.0,0.00020547,2]
[349537152,1737283887649,-617.68,0.00020547,2]
[349537153,1737283887659,-500.0,0.00020547,2]
[349537154,1737283887672,-3188.95,0.00020547,2]
[349537155,1737283887683,-500.0,0.00020547,2]
[349537156,1737283887692,-2260.69,0.00020547,2]
[349537157,1737283887704,-500.0,0.00020547,2]
[349537158,1737283887713,-1124.05,0.00020547,2]
[349537159,1737283887723,-500.0,0.00020547,2]
[349537160,1737283887732,-500.0,0.00020547,2]
[349537161,1737283887742,-544.77,0.00020547,2]
[349537162,1737283887751,-500.0,0.00020547,2]
[349537163,1737283887761,-500.0,0.00020547,2]
[349537164,1737283887771,-1632.27,0.00020547,2]
[349537165,1737283887781,-500.0,0.00020547,2]
[349537166,1737283887791,-1360.05,0.00020547,2]
[349537167,1737283887800,-550.47,0.00020547,2]
[349537168,1737283887810,-730.23,0.00020547,2]
[349537169,1737283887819,-500.0,0.00020547,2]
[349537170,1737283887828,-1209.91,0.00020547,2]
[349537171,1737283887838,-500.0,0.00020547,2]
[349537172,1737283887849,-500.0,0.00020547,2]
[349537173,1737283887858,-962.98,0.00020547,2]
[349537174,1737283887867,-512.73176286,0.00020547,2]
[349537175,1737283887877,-500.0,0.00020547,2]
[349537176,1737283887888,-1043.59,0.00020547,2]
[349537177,1737283887897,-704.36,0.00020547,2]
[349537178,1737283887907,-500.0,0.00020547,2]
[349537179,1737283887918,-543.14,0.00020547,2]
[349537180,1737283887927,-2894.56,0.00020547,2]
[349537181,1737283887936,-191.77135809,0.00020547,2]
[349537182,1737283887945,-500.0,0.00020547,2]
[349537183,1737283887957,-1112.25,0.00020547,2]
[349537184,1737283887967,-1126.32,0.00020547,2]
[349537185,1737283887977,-500.0,0.00020547,2]
[349537186,1737283887987,-541.55,0.00020547,2]
[349537187,1737283887998,-1448.99,0.00020547,2]
[349537188,1737283888007,-500.0,0.00020547,2]
[349537189,1737283888016,-500.0,0.00020547,2]
[349537190,1737283888026,-913.02,0.00020547,2]
[349537191,1737283888035,-526.56866418,0.00020547,2]
[349537192,1737283888044,-500.0,0.00020547,2]
[349537193,1737283888054,-500.0,0.00020547,2]
[349537194,1737283888063,-1265.52,0.00020547,2]
[349537195,1737283888072,-4009.74,0.00020547,2]
[349537196,1737283888081,-580.32846184,0.00020547,2]
[349537197,1737283888091,-700.51,0.00020547,2]
[349537198,1737283888100,-500.0,0.00020547,2]
[349537199,1737283888110,-509.56376696,0.00020547,2]
[349537200,1737283888119,-500.0,0.00020547,2]
[349537201,1737283888128,-526.08088655,0.00020547,2]
[349537202,1737283888138,-940.25,0.00020547,2]
[349537203,1737283888147,-500.0,0.00020547,2]
[349537204,1737283888157,-500.0,0.00020547,2]
[349537205,1737283888166,-500.0,0.00020547,2]
[349537206,1737283888175,-2618.63,0.00020547,2]
[349537207,1737283888185,-500.0,0.00020547,2]
[349537208,1737283888194,-500.0,0.00020547,2]
[349537209,1737283888205,-500.0,0.00020547,2]
[349537210,1737283888214,-600.2,0.00020547,2]
[349537211,1737283888223,-374.24473233,0.00020547,2]
[349537212,1737283888232,-500.0,0.00020547,2]
[349537213,1737283888241,-507.48484842,0.00020547,2]
[349537214,1737283888251,-7315.83,0.00020547,2]
[349537215,1737283888262,-2144.05,0.00020547,2]
[349537216,1737283888271,-1886.57,0.00020547,2]
[349537217,1737283888281,-1320.33,0.00020547,2]
[349537218,1737283888290,-500.0,0.00020547,2]
[349537219,1737283888301,-500.0,0.00020547,2]
[349537220,1737283888311,-500.0,0.00020547,2]
[349537221,1737283888320,-1833.46,0.00020547,2]
[349537222,1737283888329,-460.21654168,0.00020547,2]
[349537223,1737283888338,-500.0,0.00020547,2]
[349537224,1737283888347,-500.0,0.00020547,2]
[349537225,1737283888356,-1146.48,0.00020547,2]
[349537226,1737283888365,-500.0,0.00020547,2]
[349537227,1737283888374,-6964.65,0.00020547,2]
[349537228,1737283888383,-1729.83,0.00020547,2]
[349537229,1737283888392,-500.0,0.00020547,2]
[349537230,1737283888401,-2349.68,0.00020547,2]
[349537231,1737283888410,-500.0,0.00020547,2]
[349537232,1737283888419,-500.0,0.00020547,2]
[349537233,1737283888428,-2142.93,0.00020547,2]
[349537234,1737283888438,-458.44502557,0.00020547,2]
[349537235,1737283888447,-1744.21,0.00020547,2]
[349537236,1737283888457,-686.43,0.00020547,2]
[349537237,1737283888467,-515.33288316,0.00020547,2]
[349537238,1737283888476,-2892.09,0.00020547,2]
[349537239,1737283888486,-151.0,0.00020547,2]
[349537240,1737283888495,-500.0,0.00020547,2]
[349537241,1737283888504,-500.0,0.00020547,2]
[349537242,1737283888513,-205.56,0.00020547,2]
[349537243,1737283888522,-623.62,0.00020547,2]
[349537244,1737283888532,-1002.08,0.00020547,2]
[349537245,1737283888541,-500.0,0.00020547,2]
[349537246,1737283888550,-770.77,0.00020547,2]
[349537247,1737283888560,-9460.13,0.00020547,2]
[349537248,1737283888569,-2072.12,0.00020547,2]
[349537249,1737283888578,-500.0,0.00020547,2]
[349537250,1737283888587,-4098.31,0.00020547,2]
[349537251,1737283888596,-500.0,0.00020547,2]
[349537252,1737283888605,-500.0,0.00020547,2]
[349537253,1737283888614,-500.0,0.00020547,2]
[349537254,1737283888623,-509.25,0.00020547,2]
[349537255,1737283888632,-500.0,0.00020547,2]
[349537256,1737283888641,-500.0,0.00020547,2]
[349537257,1737283888650,-503.74,0.00020547,2]
[349537258,1737283888659,-500.0,0.00020547,2]
[349537259,1737283888668,-500.0,0.00020547,2]
[349537260,1737283888677,-500.0,0.00020547,2]
[349537261,1737283888686,-1622.26,0.00020547,2]
[349537262,1737283888695,-500.0,0.00020547,2]
[349537263,1737283888706,-500.0,0.00020547,2]
[349537264,1737283888715,-839.58,0.00020547,2]
[349537265,1737283888725,-622.13,0.00020547,2]
[349537266,1737283888734,-746.16,0.00020547,2]
[349537267,1737283888744,-500.0,0.00020547,2]
[349537268,1737283888754,-2122.49,0.00020547,2]
[349537269,1737283888763,-700.78,0.00020547,2]
[349537270,1737283888772,-151.0,0.00020547,2]
[349537271,1737283888781,-500.0,0.00020547,2]
[349537272,1737283888791,-500.0,0.00020547,2]
[349537273,1737283888800,-500.0,0.00020547,2]
[349537274,1737283888809,-1394.781451,0.00020547,2]
[349537275,1737283888819,-6710.42,0.00020547,2]
[349537276,1737283888828,-503.9085247,0.00020547,2]
[349537277,1737283888837,-968.36,0.00020547,2]
[349537278,1737283888846,-500.0,0.00020547,2]
[349537279,1737283888855,-500.0,0.00020547,2]
[349537280,1737283888864,-500.0,0.00020547,2]
[349537281,1737283889007,-1394.781451,0.00020547,2]
[349537282,1737283889018,-500.0,0.00020547,2]
[349537283,1737283889027,-2138.74,0.00020547,2]
[349537284,1737283889038,-2990.26,0.00020547,2]
[349537285,1737283889048,-500.0,0.00020547,2]
[349537286,1737283889058,-939.99,0.00020547,2]
[349537287,1737283889067,-1497.89,0.00020547,2]
[349537288,1737283889077,-500.0,0.00020547,2]
[349537289,1737283889086,-500.0,0.00020547,2]
[349537290,1737283889095,-500.0,0.00020547,2]
[349537291,1737283889105,-500.0,0.00020547,2]
[349537292,1737283889115,-500.0,0.00020547,2]
[349537293,1737283889124,-1550.84,0.00020547,2]
[349537294,1737283889133,-500.0,0.00020547,2]
[349537295,1737283889143,-500.0,0.00020547,2]
[349537296,1737283889152,-500.0,0.00020547,2]
[349537297,1737283889162,-1454.18,0.00020547,2]
[349537298,1737283889171,-660.46,0.00020547,2]
[349537299,1737283889180,-857.18,0.00020547,2]
[349537300,1737283889189,-2515.58,0.00020547,2]
[349537301,1737283889198,-500.0,0.00020547,2]
[349537302,1737283889208,-500.0,0.00020547,2]
[349537303,1737283889217,-500.0,0.00020547,2]
[349537304,1737283889226,-1304.59,0.00020547,2]
[349537305,1737283889235,-1399.53,0.00020547,2]
[349537306,1737283889244,-500.0,0.00020547,2]
[349537307,1737283889254,-500.0,0.00020547,2]
[349537308,1737283889266,-961.23,0.00020547,2]
[349537309,1737283889275,-500.0,0.00020547,2]
[349537310,1737283889284,-500.0,0.00020547,2]
[349537311,1737283889294,-6814.74,0.00020547,2]
[349537312,1737283889303,-500.0,0.00020547,2]
[349537313,1737283889312,-563.53,0.00020547,2]
[349537314,1737283889321,-2694.65,0.00020547,2]
[349537315,1737283889332,-500.0,0.00020547,2]
[349537316,1737283889341,-500.0,0.00020547,2]
[349537317,1737283889350,-500.0,0.00020547,2]
[349537318,1737283889359,-500.0,0.00020547,2]
[349537319,1737283889368,-2319.64,0.00020547,2]
[349537320,1737283889377,-2281.0,0.00020547,2]
[349537321,1737283889387,-500.0,0.00020547,2]
[349537322,1737283889395,-500.0,0.00020547,2]
[349537323,1737283889404,-500.0,0.00020547,2]
[349537324,1737283889413,-500.0,0.00020547,2]
[349537325,1737283889423,-579.85,0.00020547,2]
[349537326,1737283889431,-608.39,0.00020547,2]
[349537327,1737283889440,-814.26,0.00020547,2]
[349537328,1737283889450,-500.0,0.00020547,2]
[349537329,1737283889459,-500.0,0.00020547,2]
[349537330,1737283889468,-666.3,0.00020547,2]
[349537331,1737283889477,-510.93,0.00020547,2]
[349537332,1737283889486,-1602.86,0.00020547,2]
[349537333,1737283889495,-1636.5,0.00020547,2]
[349537334,1737283889504,-500.0,0.00020547,2]
[349537335,1737283889514,-500.0,0.00020547,2]
[349537336,1737283889523,-500.0,0.00020547,2]
[349537337,1737283889532,-626.38,0.00020547,2]
[349537338,1737283889541,-780.64,0.00020547,2]
[349537339,1737283889550,-1000.0,0.00020547,2]
[349537340,1737283889559,-633.29,0.00020547,2]
[349537341,1737283889570,-500.0,0.00020547,2]
[349537342,1737283889581,-500.0,0.00020547,2]
[349537343,1737283889592,-500.0,0.00020547,2]
[349537344,1737283889601,-500.0,0.00020547,2]
[349537345,1737283889611,-500.0,0.00020547,2]
[349537346,1737283889621,-1313.29,0.00020547,2]
[349537347,1737283889631,-500.0,0.00020547,2]
[349537348,1737283889642,-659.22,0.00020547,2]
[349537349,1737283889652,-917.59,0.00020547,2]
[349537350,1737283889662,-500.0,0.00020547,2]
[349537351,1737283889672,-519.66832686,0.00020547,2]
[349537352,1737283889683,-562.37,0.00020547,2]
[349537353,1737283889693,-633.86,0.00020547,2]
[349537354,1737283889704,-500.0,0.00020547,2]
[349537355,1737283889713,-1551.56,0.00020547,2]
[349537356,1737283889722,-497.050586,0.00020547,2]
[349537357,1737283889731,-500.0,0.00020547,2]
[349537358,1737283889741,-500.0,0.00020547,2]
[349537359,1737283889750,-1631.28,0.00020547,2]
[349537360,1737283889760,-509.87,0.00020547,2]
[349537361,1737283889770,-500.0,0.00020547,2]
[349537362,1737283889781,-500.0,0.00020547,2]
[349537363,1737283889790,-500.0,0.00020547,2]
[349537364,1737283889799,-11562.91,0.00020547,2]
[349537365,1737283889809,-497.050586,0.00020547,2]
[349537366,1737283889818,-508.82527818,0.00020547,2]
[349537367,1737283889828,-2945.05,0.00020547,2]
[349537368,1737283889837,-500.0,0.00020547,2]
[349537369,1737283889847,-1035.44,0.00020547,2]
[349537370,1737283889856,-1288.18,0.00020547,2]
[349537371,1737283889865,-500.0,0.00020547,2]
[349537372,1737283889874,-500.0,0.00020547,2]
[349537373,1737283889883,-604.12,0.00020547,2]
[349537374,1737283889892,-701.15,0.00020547,2]
[349537375,1737283889901,-684.27,0.00020547,2]
[349537376,1737283889910,-726.31,0.00020547,2]
[349537377,1737283889919,-500.0,0.00020547,2]
[349537378,1737283889928,-693.12,0.00020547,2]
[349537379,1737283889938,-1243.35,0.00020547,2]
[349537380,1737283889947,-500.0,0.00020547,2]
[349537381,1737283889958,-500.0,0.00020547,2]
[349537382,1737283889967,-583.23,0.00020547,2]
[349537383,1737283889977,-177.42,0.00020548,2]
[349537384,1737283889987,-300.0,0.00020564,2]
[349537385,1737283889997,-203.94393132,0.00020567,2]
[349537386,1737283890006,-871.3353095,0.00020642,2]
[349537387,1737283890015,-209.0,0.0002066,2]
[349537388,1737283890024,-206.0,0.0002066,2]
[349537389,1737283890034,-500.0,0.00020684,2]
[349537390,1737283890043,-150.0,0.0002074,2]
[349537391,1737283890052,-150.0,0.0002074,2]
[349537392,1737283890061,-300.0,0.0002074,2]
[349537393,1737283890071,-150.0,0.0002074,2]
[349537394,1737283890079,-873.44,0.0002074,2]
[349537395,1737283890088,-150.0,0.0002074,2]
[349537396,1737283890097,-150.0,0.0002074,2]
[349537397,1737283890107,-1332.66,0.00020758,2]
[349537398,1737283890116,-203.94393132,0.00020775,2]
[349537399,1737283890125,-693.970146,0.00020821,2]
[349537400,1737283890134,-158.892989,0.00020821,2]
[349537401,1737283890143,-1179.248694,0.00020821,2]
[349537402,1737283890152,-173.49254,0.00020821,2]
[349537403,1737283890162,-166.969208,0.00020821,2]
[349537404,1737283890171,-500.0,0.00020821,2]
[349537405,1737283890182,-500.0,0.00020821,2]
[349537406,1737283890192,-500.0,0.00020821,2]
[349537407,1737283890202,-500.0,0.00020821,2]
[349537408,1737283890211,-500.0,0.00020821,2]
[349537409,1737283890221,-500.0,0.00020821,2]
[349537410,1737283890231,-500.0,0.00020821,2]
[349537411,1737283890240,-500.0,0.00020821,2]
[349537412,1737283890249,-500.0,0.00020821,2]
[349537413,1737283890261,-500.0,0.00020821,2]
[349537414,1737283890273,-500.0,0.00020821,2]
[349537415,1737283890282,-500.0,0.00020821,2]
[349537416,1737283890291,-879.97,0.00020821,2]
[349537417,1737283890302,-538.6,0.00020821,2]
[349537418,1737283890311,-506.32,0.00020821,2]
[349537419,1737283890320,-1099.14,0.00020821,2]
[349537420,1737283890330,-500.0,0.00020821,2]
[349537421,1737283890343,-330.04490682,0.00020821,2]
[349537422,1737283890353,-672.06,0.00020821,2]
[349537423,1737283890364,-500.0,0.00020821,2]
[349537424,1737283890374,-500.0,0.00020821,2]
[349537425,1737283890383,-508.25853378,0.00020821,2]
[349537426,1737283890394,-500.0,0.00020821,2]
[349537427,1737283890405,-500.0,0.00020821,2]
[349537428,1737283890415,-500.0,0.00020821,2]
[349537429,1737283890424,-500.0,0.00020821,2]
[349537430,1737283890434,-500.0,0.00020821,2]
[349537431,1737283890445,-494.13492586,0.00020821,2]
[349537432,1737283890455,-500.0,0.00020821,2]
[349537433,1737283890465,-500.0,0.00020821,2]
[349537434,1737283890474,-500.0,0.00020821,2]
[349537435,1737283890483,-500.0,0.00020821,2]
[349537436,1737283890492,-150.82840285,0.00020821,2]
[349537437,1737283890502,-517.62636897,0.00020821,2]
[349537438,1737283890511,-500.0,0.00020821,2]
[349537439,1737283890520,-500.0,0.00020821,2]
[349537440,1737283890529,-500.0,0.00020821,2]
[349537441,1737283890539,-500.0,0.00020821,2]
[349537442,1737283890548,-500.0,0.00020821,2]
[349537443,1737283890556,-374.47210898,0.00020821,2]
[349537444,1737283890566,-791.74,0.00020821,2]
[349537445,1737283890575,-500.0,0.00020821,2]
[349537446,1737283890585,-645.35106096,0.00020821,2]
[349537447,1737283890594,-494.24090497,0.00020821,2]
[349537448,1737283890604,-500.0,0.00020821,2]
[349537449,1737283890613,-500.0,0.00020821,2]
[349537450,1737283890624,-434.42496004,0.00020821,2]
[349537451,1737283890634,-521.24879138,0.00020821,2]
[349537452,1737283890643,-500.0,0.00020821,2]
[349537453,1737283890653,-500.0,0.00020821,2]
[349537454,1737283890662,-533.94,0.00020821,2]
[349537455,1737283890671,-500.0,0.00020821,2]
[349537456,1737283890681,-507.25498212,0.00020821,2]
[349537457,1737283890690,-500.0,0.00020821,2]
[349537458,1737283890701,-969.95,0.00020821,2]
[349537459,1737283890711,-509.16389858,0.00020821,2]
[349537460,1737283890720,-500.0,0.00020821,2]
[349537461,1737283890729,-500.0,0.00020821,2]
[349537462,1737283890738,-500.0,0.00020821,2]
[349537463,1737283890747,-500.0,0.00020821,2]
[349537464,1737283890756,-500.0,0.00020821,2]
[349537465,1737283890765,-500.0,0.00020821,2]
[349537466,1737283890774,-500.0,0.00020821,2]
[349537467,1737283890783,-1154.09,0.00020821,2]
[349537468,1737283890791,-546.77,0.00020821,2]
[349537469,1737283890800,-500.0,0.00020821,2]
[349537470,1737283890809,-500.0,0.00020821,2]
[349537471,1737283890818,-500.0,0.00020821,2]
[349537472,1737283890828,-1248.1,0.00020821,2]
[349537473,1737283890837,-500.0,0.00020821,2]
[349537474,1737283890846,-500.0,0.00020821,2]
[349537475,1737283890855,-857.42,0.00020821,2]
[349537476,1737283890864,-500.0,0.00020821,2]
[349537477,1737283890874,-1848.61,0.00020821,2]
[349537478,1737283890883,-500.0,0.00020821,2]
[349537479,1737283890891,-1098.96,0.00020821,2]
[349537480,1737283890900,-500.0,0.00020821,2]
[349537481,1737283890910,-500.0,0.00020821,2]
[349537482,1737283890918,-2979.32,0.00020821,2]
[349537483,1737283890927,-500.0,0.00020821,2]
[349537484,1737283890936,-500.0,0.00020821,2]
[349537485,1737283890945,-793.62,0.00020821,2]
[349537486,1737283890957,-500.0,0.00020821,2]
[349537487,1737283890966,-500.0,0.00020821,2]
[349537488,1737283890976,-1198.76,0.00020821,2]
[349537489,1737283890985,-572.69,0.00020821,2]
[349537490,1737283890994,-500.0,0.00020821,2]
[349537491,1737283891003,-500.0,0.00020821,2]
[349537492,1737283891014,-500.0,0.00020821,2]
[349537493,1737283891023,-500.0,0.00020821,2]
[349537494,1737283891032,-500.0,0.00020821,2]
[349537495,1737283891042,-745.22,0.00020821,2]
[349537496,1737283891051,-500.0,0.00020821,2]
[349537497,1737283891060,-590.61,0.00020821,2]
[349537498,1737283891069,-500.0,0.00020821,2]
[349537499,1737283891078,-500.0,0.00020821,2]
[349537500,1737283891087,-500.0,0.00020821,2]
[349537501,1737283891098,-522.0083728,0.00020821,2]
[349537502,1737283891107,-500.0,0.00020821,2]
[349537503,1737283891116,-713.24,0.00020821,2]
[349537504,1737283891125,-523.75,0.00020821,2]
[349537505,1737283891134,-536.69,0.00020821,2]
[349537506,1737283891143,-500.0,0.00020821,2]
[349537507,1737283891153,-917.76,0.00020821,2]
[349537508,1737283891161,-500.0,0.00020821,2]
[349537509,1737283891171,-512.37,0.00020821,2]
[349537510,1737283891179,-500.0,0.00020821,2]
[349537511,1737283891188,-541.39,0.00020821,2]
[349537512,1737283891197,-766.68,0.00020821,2]
[349537513,1737283891208,-776.23,0.00020821,2]
[349537514,1737283891218,-500.0,0.00020821,2]
[349537515,1737283891227,-500.0,0.00020821,2]
[349537516,1737283891235,-500.0,0.00020821,2]
[349537517,1737283891245,-500.0,0.00020821,2]
[349537518,1737283891256,-500.0,0.00020821,2]
[349537519,1737283891266,-518.56,0.00020821,2]
[349537520,1737283891275,-500.0,0.00020821,2]
[349537521,1737283891284,-783.5,0.00020821,2]
[349537522,1737283891295,-500.0,0.00020821,2]
[349537523,1737283891304,-584.68,0.00020821,2]
[349537524,1737283891314,-500.0,0.00020821,2]
[349537525,1737283891323,-500.0,0.00020821,2]
[349537526,1737283891333,-500.0,0.00020821,2]
[349537527,1737283891341,-1116.59,0.00020821,2]
[349537528,1737283891351,-500.0,0.00020821,2]
[349537529,1737283891359,-500.0,0.00020821,2]
[349537530,1737283891368,-500.0,0.00020821,2]
[349537531,1737283891378,-500.0,0.00020821,2]
[349537532,1737283891387,-500.0,0.00020821,2]
[349537533,1737283891396,-500.0,0.00020821,2]
[349537534,1737283891405,-500.0,0.00020821,2]
[349537535,1737283891414,-500.0,0.00020821,2]
[349537536,1737283891424,-500.0,0.00020821,2]
[349537537,1737283891433,-702.08,0.00020821,2]
[349537538,1737283891442,-2602.19,0.00020821,2]
[349537539,1737283891452,-500.0,0.00020821,2]
[349537540,1737283891460,-500.0,0.00020821,2]